fUST/lending_fUST_20260617
["ID","MTS","AMOUNT","RATE_DAILY","PERIOD"]
[425248173,1781633442000,-589.16,0.00016299,2]
[425248172,1781633442000,-3000.0,0.0001629,2]
[425248174,1781633442000,-3000.0,0.000163,2]
[425248179,1781633442000,-3000.0,0.0001633,2]
[425248180,1781633442000,-3000.0,0.0001634,2]
[425248181,1781633442000,-3000.0,0.0001635,2]
[425248178,1781633442000,-589.16,0.00016329,2]
[425248177,1781633442000,-3000.0,0.0001632,2]
[425248176,1781633442000,-166.88,0.0001631,3]
[425248182,1781633442000,-333.76,0.0001635,3]
[425248165,1781633442000,-1919.30944048,0.00016242,2]
[425248192,1781633442000,-3000.0,0.0001643,2]
[425248190,1781633442000,-589.16,0.00016419,2]
[425248206,1781633442000,-485.842016,0.00016438,2]
[425248196,1781633442000,-485.842016,0.00016438,2]
[425248187,1781633442000,-3000.0,0.0001639,2]
[425248188,1781633442000,-3000.0,0.000164,2]
[425248189,1781633442000,-3000.0,0.0001641,2]
[425248198,1781633442000,-485.842016,0.00016438,2]
[425248183,1781633442000,-3000.0,0.0001636,2]
[425248184,1781633442000,-3000.0,0.0001637,2]
[425248194,1781633442000,-589.16,0.00016438,2]
[425248191,1781633442000,-3000.0,0.0001642,2]
[425248193,1781633442000,-500.0,0.00016434,2]
[425248185,1781633442000,-589.16,0.00016379,2]
[425248277,1781633443000,-333.20311463,0.00017242,2]
[425248273,1781633443000,-244.63370739,0.00017057,2]
[425248260,1781633443000,-1919.30944048,0.000169,2]
[425248265,1781633443000,-589.16,0.00016999,2]
[425248264,1781633443000,-589.16,0.00016999,2]
[425248266,1781633443000,-589.16,0.00016999,2]
[425248269,1781633443000,-103135.64019003,0.00017,2]
[425248270,1781633443000,-200.0,0.00017,2]
[425248272,1781633443000,-214.05449397,0.00017057,2]
[425248267,1781633443000,-589.16,0.00016999,2]
[425248286,1781633443000,-589.16,0.00017599,2]
[425248268,1781633443000,-589.16,0.00016999,2]
[425248279,1781633443000,-1074.40991381,0.00017348,2]
[425248283,1781633443000,-1152.49557354,0.00017548,2]
[425248281,1781633443000,-1088.18423406,0.00017448,2]
[425248284,1781633443000,-589.16,0.00017599,2]
[425248278,1781633443000,-1006.1562324,0.00017248,2]
[425248275,1781633443000,-328.31828213,0.00017057,2]
[425248276,1781633443000,-151.0,0.000171,2]
[425248280,1781633443000,-282.97469,0.00017444,2]
[425248282,1781633443000,-381.85792763,0.00017539,2]
[425248288,1781633443000,-589.26462061,0.00017599,2]
[425248287,1781633443000,-589.16,0.00017599,2]
[425248298,1781633443000,-160.0,0.00017775,2]
[425248290,1781633443000,-220.23,0.0001765,2]
[425248299,1781633443000,-151.0,0.000178,2]
[425248262,1781633443000,-1276.011621,0.00016968,2]
[425248285,1781633443000,-589.16,0.00017599,2]
[425248263,1781633443000,-3122.550998,0.00016968,2]
[425248291,1781633443000,-3051.0812347,0.0001766,2]
[425248271,1781633443000,-167.88529794,0.00017,2]
[425248236,1781633443000,-200.0,0.00016438,3]
[425248234,1781633443000,-200.0,0.00016438,3]
[425248233,1781633443000,-200.0,0.00016438,3]
[425248232,1781633443000,-233.29536,0.00016438,2]
[425248238,1781633443000,-200.0,0.00016438,3]
[425248237,1781633443000,-200.0,0.00016438,3]
[425248248,1781633443000,-589.16,0.00016499,2]
[425248241,1781633443000,-3000.0,0.0001645,2]
[425248240,1781633443000,-3000.0,0.0001644,2]
[425248242,1781633443000,-3000.0,0.0001646,2]
[425248243,1781633443000,-14605.152528,0.00016469,2]
[425248244,1781633443000,-3000.0,0.0001647,2]
[425248239,1781633443000,-200.0,0.00016438,3]
[425248245,1781633443000,-3000.0,0.0001648,2]
[425248246,1781633443000,-589.16,0.00016489,2]
[425248247,1781633443000,-3000.0,0.0001649,2]
[425248249,1781633443000,-3000.0,0.000165,2]
[425248251,1781633443000,-3000.0,0.0001651,2]
[425248250,1781633443000,-27358.46624007,0.000165,2]
[425248252,1781633443000,-3000.0,0.0001652,2]
[425248256,1781633443000,-1919.30944048,0.00016571,2]
[425248253,1781633443000,-589.16,0.00016529,2]
[425248254,1781633443000,-3000.0,0.0001653,2]
[425248258,1781633443000,-282.97469,0.00016792,2]
[425248257,1781633443000,-152.0,0.00016718,7]
[425248255,1781633443000,-4684.030047,0.0001654,2]
[425248259,1781633443000,-5785.8968189,0.00016823,2]
[425248261,1781633443000,-273.26,0.00016907,2]
[425248292,1781633443000,-333.76,0.0001768,3]
[425248340,1781633443000,-1000.0,0.00019078,2]
[425248295,1781633443000,-11138.167476,0.00017681,2]
[425248335,1781633443000,-160.0,0.00019012,2]
[425248326,1781633443000,-373.73663903,0.000189,2]
[425248332,1781633443000,-181.08010149,0.00018999,2]
[425248330,1781633443000,-600.0,0.00018971,2]
[425248333,1781633443000,-411.83615071,0.00019,2]
[425248331,1781633443000,-166.66,0.00018999,2]
[425248327,1781633443000,-160.460192,0.0001893,2]
[425248334,1781633443000,-5052.77561789,0.00019,2]
[425248336,1781633443000,-2010.410162,0.00019012,2]
[425248338,1781633443000,-286.08324096,0.00019075,2]
[425248339,1781633443000,-1000.0,0.00019078,2]
[425248337,1781633443000,-3860.820324,0.00019012,2]
[425248348,1781633443000,-1000.0,0.00019078,2]
[425248342,1781633443000,-1000.0,0.00019078,2]
[425248344,1781633443000,-1000.0,0.00019078,2]
[425248359,1781633443000,-500.0,0.00019178,2]
[425248346,1781633443000,-1000.0,0.00019078,2]
[425248353,1781633443000,-151.0,0.00019106,2]
[425248351,1781633443000,-5052.77561789,0.000191,2]
[425248350,1781633443000,-411.83615071,0.000191,2]
[425248355,1781633443000,-151.0,0.00019106,2]
[425248357,1781633443000,-174.41,0.00019163,2]
[425248354,1781633443000,-151.0,0.00019106,2]
[425248356,1781633443000,-181.013,0.00019152,2]
[425248360,1781633443000,-500.0,0.00019178,2]
[425248358,1781633443000,-500.0,0.00019178,2]
[425248289,1781633443000,-2172.33134165,0.000176,2]
[425248329,1781633443000,-399.69368667,0.00018943,5]
[425248320,1781633443000,-411.83615071,0.000188,2]
[425248352,1781633443000,-151.0,0.00019106,2]
[425248323,1781633443000,-277.19513173,0.000189,2]
[425248319,1781633443000,-282.97469,0.00018748,2]
[425248294,1781633443000,-5649.083738,0.00017681,2]
[425248293,1781633443000,-160.0,0.00017681,2]
[425248296,1781633443000,-294.0,0.00017714,2]
[425248297,1781633443000,-667.52,0.0001772,3]
[425248300,1781633443000,-159.0,0.00017863,2]
[425248312,1781633443000,-160.0,0.00018576,2]
[425248308,1781633443000,-193.249,0.00018126,2]
[425248305,1781633443000,-282.97469,0.00018096,2]
[425248309,1781633443000,-445.0,0.00018126,2]
[425248306,1781633443000,-1840.0,0.00018126,2]
[425248303,1781633443000,-163.602384,0.00018027,2]
[425248307,1781633443000,-195.151,0.00018126,2]
[425248301,1781633443000,-160.0,0.00017978,2]
[425248311,1781633443000,-6778.900486,0.00018565,2]
[425248302,1781633443000,-201.1783468,0.00018,2]
[425248321,1781633443000,-5052.77561789,0.000188,2]
[425248318,1781633443000,-556.353265,0.00018664,2]
[425248322,1781633443000,-929.301976,0.00018877,2]
[425248315,1781633443000,-797.730781,0.00018585,2]
[425248316,1781633443000,-411.83615071,0.000186,2]
[425248324,1781633443000,-498.95123711,0.000189,2]
[425248313,1781633443000,-425.337207,0.00018584,2]
[425248314,1781633443000,-1040.850332,0.00018584,2]
[425248325,1781633443000,-887.02442153,0.000189,2]
[425248310,1781633443000,-5785.8968189,0.00018432,2]
[425248304,1781633443000,-7302.576264,0.00018038,2]
[425248317,1781633443000,-5052.77561789,0.000186,2]
[425248385,1781633444000,-240.819334,0.00019178,2]
[425248381,1781633444000,-240.819334,0.00019178,2]
[425248383,1781633444000,-240.819334,0.00019178,2]
[425248384,1781633444000,-240.819334,0.00019178,2]
[425248388,1781633444000,-240.819334,0.00019178,2]
[425248390,1781633444000,-240.819334,0.00019178,2]
[425248389,1781633444000,-240.819334,0.00019178,2]
[425248386,1781633444000,-240.819334,0.00019178,2]
[425248387,1781633444000,-240.819334,0.00019178,2]
[425248401,1781633444000,-160.0,0.00019394,2]
[425248394,1781633444000,-240.819334,0.00019178,2]
[425248404,1781633444000,-500.0,0.00019452,2]
[425248403,1781633444000,-151.0,0.00019436,2]
[425248405,1781633444000,-500.0,0.00019452,2]
[425248396,1781633444000,-240.819337,0.00019178,2]
[425248397,1781633444000,-411.83615071,0.000193,2]
[425248406,1781633444000,-500.0,0.00019452,2]
[425248393,1781633444000,-240.819334,0.00019178,2]
[425248402,1781633444000,-151.0,0.00019436,2]
[425248391,1781633444000,-240.819334,0.00019178,2]
[425248392,1781633444000,-240.819334,0.00019178,2]
[425248370,1781633444000,-500.0,0.00019178,2]
[425248379,1781633444000,-240.819334,0.00019178,2]
[425248398,1781633444000,-5052.77561789,0.000193,2]
[425248365,1781633444000,-500.0,0.00019178,2]
[425248361,1781633444000,-500.0,0.00019178,2]
[425248362,1781633444000,-500.0,0.00019178,2]
[425248366,1781633444000,-2616.71,0.00019178,2]
[425248363,1781633444000,-500.0,0.00019178,2]
[425248364,1781633444000,-500.0,0.00019178,2]
[425248367,1781633444000,-500.0,0.00019178,2]
[425248371,1781633444000,-500.0,0.00019178,2]
[425248369,1781633444000,-500.0,0.00019178,2]
[425248368,1781633444000,-500.0,0.00019178,2]
[425248376,1781633444000,-500.0,0.00019178,2]
[425248375,1781633444000,-500.0,0.00019178,2]
[425248372,1781633444000,-519.18,0.00019178,2]
[425248377,1781633444000,-240.819334,0.00019178,2]
[425248373,1781633444000,-500.0,0.00019178,2]
[425248374,1781633444000,-500.0,0.00019178,2]
[425248380,1781633444000,-240.819334,0.00019178,2]
[425248378,1781633444000,-240.819334,0.00019178,2]
[425248382,1781633444000,-240.819334,0.00019178,2]
[425248399,1781633444000,-328.82,0.00019328,2]
[425248395,1781633444000,-240.819334,0.00019178,2]
[425248408,1781633444000,-500.0,0.00019452,2]
[425248430,1781633444000,-5052.77561789,0.000197,2]
[425248433,1781633444000,-500.0,0.00019726,2]
[425248441,1781633444000,-500.0,0.00019726,2]
[425248443,1781633444000,-500.0,0.00019726,2]
[425248442,1781633444000,-500.0,0.00019726,2]
[425248432,1781633444000,-500.0,0.00019726,2]
[425248435,1781633444000,-500.0,0.00019726,2]
[425248436,1781633444000,-500.0,0.00019726,2]
[425248439,1781633444000,-174.25,0.00019726,2]
[425248431,1781633444000,-294.61498287,0.00019725,2]
[425248440,1781633444000,-500.0,0.00019726,2]
[425248437,1781633444000,-500.0,0.00019726,2]
[425248444,1781633444000,-519.18,0.00019726,2]
[425248448,1781633444000,-517.12232855,0.00019807,2]
[425248452,1781633444000,-2484.97347749,0.0001983,2]
[425248445,1781633444000,-500.0,0.00019726,2]
[425248449,1781633444000,-233305.09114525,0.0001983,2]
[425248451,1781633444000,-160.0,0.00019295,2]
[425248446,1781633444000,-200.11,0.00019726,2]
[425248400,1781633444000,-411.34892999,0.00019366,2]
[425248438,1781633444000,-2616.71,0.00019726,2]
[425248425,1781633444000,-300.0,0.00019589,3]
[425248434,1781633444000,-500.0,0.00019726,2]
[425248424,1781633444000,-157.69996375,0.00019547,2]
[425248416,1781633444000,-500.0,0.00019452,2]
[425248417,1781633444000,-519.18,0.00019452,2]
[425248428,1781633444000,-797.0,0.000196,2]
[425248407,1781633444000,-500.0,0.00019452,2]
[425248412,1781633444000,-500.0,0.00019452,2]
[425248411,1781633444000,-2616.71,0.00019452,2]
[425248447,1781633444000,-500.0,0.00019726,2]
[425248418,1781633444000,-500.0,0.00019452,2]
[425248419,1781633444000,-500.0,0.00019452,2]
[425248413,1781633444000,-500.0,0.00019452,2]
[425248410,1781633444000,-500.0,0.00019452,2]
[425248409,1781633444000,-636.65269035,0.00019452,2]
[425248415,1781633444000,-500.0,0.00019452,2]
[425248429,1781633444000,-156.0,0.00019644,2]
[425248427,1781633444000,-151.0,0.000196,2]
[425248421,1781633444000,-1385.97565865,0.00019462,2]
[425248426,1781633444000,-724.9618833,0.000196,2]
[425248422,1781633444000,-5052.77561789,0.000195,2]
[425248420,1781633444000,-500.0,0.00019452,2]
[425248414,1781633444000,-500.0,0.00019452,2]
[425248423,1781633444000,-166.66,0.00019547,2]
[425248461,1781633447000,-300.0,0.00019178,2]
[425248593,1781634632000,-433.45811007,0.00011179,2]
[425248655,1781634640000,-5416.437081,0.00016754,2]
[425248662,1781634640000,-2073.61078389,0.00017591,2]
[425248668,1781634640000,-1993.80914351,0.00017624,2]
[425248666,1781634640000,-500.0,0.00017591,2]
[425248664,1781634640000,-500.0,0.00017591,2]
[425248653,1781634640000,-500.0,0.00016753,2]
[425248643,1781634640000,-422.05972355,0.00013233,14]
[425248651,1781634640000,-12496.6671732,0.0001657,2]
[425248645,1781634640000,-164.506489,0.00016261,2]
[425248647,1781634640000,-329.5626727,0.00016323,2]
[425248639,1781634640000,-4566.54188993,0.00011179,2]
[425248641,1781634640000,-151.0,0.00011406,2]
[425248661,1781634640000,-164.506489,0.00017399,2]
[425248649,1781634640000,-300.0,0.00016569,2]
[425248657,1781634640000,-300.0,0.00017048,2]
[425248674,1781634640000,-2539.0591317,0.00018452,2]
[425248670,1781634640000,-167.257911,0.00017969,2]
[425248659,1781634640000,-166.84,0.00017204,2]
[425248699,1781634640000,-500.0,0.00018551,2]
[425248698,1781634640000,-500.0,0.00018551,2]
[425248692,1781634640000,-500.0,0.00018551,2]
[425248688,1781634640000,-500.0,0.00018551,2]
[425248684,1781634640000,-500.0,0.00018551,2]
[425248680,1781634640000,-500.0,0.00018551,2]
[425248696,1781634640000,-500.0,0.00018551,2]
[425248682,1781634640000,-500.0,0.00018551,2]
[425248694,1781634640000,-500.0,0.00018551,2]
[425248686,1781634640000,-500.0,0.00018551,2]
[425248678,1781634640000,-500.0,0.00018551,2]
[425248676,1781634640000,-288.96289384,0.00018551,2]
[425248672,1781634640000,-420.0,0.00018105,2]
[425248690,1781634640000,-361.07593426,0.00018551,2]
[425248707,1781634641000,-446.55805893,0.00018552,2]
[425248701,1781634641000,-500.0,0.00018551,2]
[425248711,1781634641000,-160.0,0.00018662,2]
[425248709,1781634641000,-173.961,0.00018662,2]
[425248703,1781634641000,-500.0,0.00018551,2]
[425248713,1781634641000,-160.0,0.00018662,2]
[425248715,1781634641000,-171.59839613,0.000187,2]
[425248705,1781634641000,-501.87669614,0.00018551,2]
[425248719,1781634641000,-167.257911,0.00018726,2]
[425248717,1781634641000,-1904.30408486,0.000187,2]
[425248723,1781634641000,-1904.30408486,0.000188,2]
[425248728,1781634641000,-262.97785614,0.00018973,2]
[425248726,1781634641000,-166.66,0.00018972,2]
[425248724,1781634641000,-473.29602512,0.00018841,2]
[425248732,1781634641000,-171.59839613,0.00019,2]
[425248730,1781634641000,-2539.05913164,0.00018984,2]
[425248736,1781634641000,-500.0,0.00019073,2]
[425248734,1781634641000,-1904.30408486,0.00019,2]
[425248738,1781634641000,-195881.39737069,0.00019077,2]
[425248720,1781634641000,-171.59839613,0.000188,2]
[425249461,1781634647000,-300.0,0.00019077,2]
[425256391,1781634711000,-152.0,0.00016714,7]
[425258013,1781635838000,-300.0,0.00017087,2]
[425258007,1781635838000,-271.87,0.00017045,2]
[425258011,1781635838000,-300.0,0.00017087,2]
[425258005,1781635838000,-300.0,0.00017042,2]
[425258015,1781635838000,-1715.92728151,0.00017143,2]
[425258016,1781635838000,-370.08273035,0.0001755,7]
[425258006,1781635838000,-1702.60190981,0.00017043,2]
[425258003,1781635838000,-277.4671013,0.00016992,2]
[425258004,1781635838000,-300.0,0.00017042,2]
[425258002,1781635838000,-285.109449,0.00016992,2]
[425257997,1781635838000,-152.0,0.00016714,7]
[425258000,1781635838000,-1599.00635872,0.00016843,2]
[425257998,1781635838000,-1561.79623637,0.00016743,2]
[425258010,1781635838000,-300.0,0.00017087,2]
[425257995,1781635838000,-1359.79100373,0.00016121,2]
[425257996,1781635838000,-646.4111568,0.00016614,2]
[425258001,1781635838000,-1689.27653819,0.00016943,2]
[425258014,1781635838000,-300.0,0.00017087,2]
[425257999,1781635838000,-491.06,0.00016753,2]
[425258012,1781635838000,-300.0,0.00017087,2]
[425258009,1781635838000,-300.0,0.00017087,2]
[425258032,1781635838000,-151077.67239163,0.00018672,2]
[425258031,1781635838000,-13680.58112827,0.00018672,2]
[425258030,1781635838000,-16026.74275482,0.00018672,2]
[425258024,1781635838000,-333.7142139,0.00018657,2]
[425258025,1781635838000,-246.42379057,0.00018657,2]
[425258026,1781635838000,-598.2980858,0.00018657,2]
[425258021,1781635838000,-500.0,0.00018656,2]
[425258027,1781635838000,-160.0,0.00018666,2]
[425258033,1781635838000,-638.47524953,0.00018672,2]
[425258023,1781635838000,-296.56380657,0.00018656,2]
[425258022,1781635838000,-220.24342299,0.00018656,2]
[425258020,1781635838000,-420.0,0.00018613,2]
[425258028,1781635838000,-160.0,0.00018666,2]
[425258017,1781635838000,-427.12758746,0.00017555,2]
[425258029,1781635838000,-160.0,0.00018666,2]
[425258018,1781635838000,-666.71946855,0.00017555,2]
[425258008,1781635838000,-248.90273565,0.00017048,7]
[425258019,1781635838000,-520.8452386,0.00017574,2]
[425259060,1781635849000,-42059.28590859,0.00018672,2]
[425259068,1781635849000,-326.55877297,0.00018672,2]
[425259041,1781635849000,-19820.7573646,0.00018672,2]
[425259325,1781635928000,168.82297,0.00016895,120]
[425259331,1781636247000,6000.0,7.6e-05,2]
[425259359,1781637031000,-300.0,0.0001,2]
[425259362,1781637031000,-233.52297623,0.00012,2]
[425259458,1781637038000,-285.10945,0.00016254,2]
[425259460,1781637038000,-1251.72990961,0.00016448,7]
[425259462,1781637038000,-1251.72990961,0.00016777,7]
[425259461,1781637038000,-5220.58443279,0.00016448,7]
[425259463,1781637038000,-5220.58443279,0.00016777,7]
[425259465,1781637038000,-168.82297,0.00016895,2]
[425259464,1781637038000,-417.15472785,0.00016777,7]
[425259466,1781637038000,-500.0,0.0001727,2]
[425259456,1781637038000,-500.0,0.00015675,2]
[425259454,1781637038000,-1426.12439384,0.00012,2]
[425259475,1781637038000,-214.013012,0.0001788,2]
[425259467,1781637038000,-505.93983891,0.0001727,2]
[425259471,1781637038000,-152.0,0.00017316,7]
[425259478,1781637038000,-117376.79615793,0.0001822,2]
[425259472,1781637038000,-173.961,0.00017316,2]
[425259476,1781637038000,-600.0,0.00018118,2]
[425259473,1781637038000,-1251.72990961,0.00017764,7]
[425259474,1781637038000,-5220.58443279,0.00017764,7]
[425259470,1781637038000,-152.0,0.00017311,7]
[425259477,1781637038000,-115379.75778901,0.0001822,2]
[425259468,1781637038000,-1251.72990961,0.0001727,7]
[425259469,1781637038000,-5220.58443279,0.0001727,7]
[425259515,1781637043000,-20855.10913248,0.0001822,2]
[425259514,1781637043000,-3099.48424801,0.0001822,2]
[425259513,1781637043000,-152.0,0.00017414,7]
[425259525,1781637129000,312.9324774,0.0001,7]
[425259526,1781637130000,312.9324774,0.000102,7]
[425259527,1781637148000,1255.54910556,0.0001,7]
[425259528,1781637149000,1255.54910556,0.000102,7]
[425259530,1781637535000,276.08151722,0.00023391,120]
[425259538,1781637664000,1000.0,0.00011,13]
[425259539,1781637679000,5000.0,0.00011,13]
[425259601,1781638232000,-300.0,0.00010709,2]
[425259581,1781638232000,-2153.51587174,0.000105,7]
[425259583,1781638232000,-300.0,0.00010709,2]
[425259578,1781638232000,-312.9324774,0.000105,7]
[425259580,1781638232000,-1255.54910556,0.000105,7]
[425259576,1781638232000,-152.0,0.00010417,7]
[425259585,1781638232000,-300.0,0.00010709,2]
[425259600,1781638232000,-300.0,0.00010709,2]
[425259587,1781638232000,-300.0,0.00010709,2]
[425259596,1781638232000,-300.0,0.00010709,2]
[425259597,1781638232000,-300.0,0.00010709,2]
[425259603,1781638232000,-1201.96046014,0.0001071,7]
[425259590,1781638232000,-300.0,0.00010709,2]
[425259599,1781638232000,-300.0,0.00010709,2]
[425259598,1781638232000,-300.0,0.00010709,2]
[425259592,1781638232000,-300.0,0.00010709,2]
[425259602,1781638232000,-300.0,0.00010709,2]
[425259594,1781638232000,-300.0,0.00010709,2]
[425259595,1781638232000,-300.0,0.00010709,2]
[425259589,1781638232000,-300.0,0.00010709,2]
[425259604,1781638232000,-340.1061,0.0001071,7]
[425259697,1781638238000,-2153.51587174,0.00011025,7]
[425259694,1781638238000,-1255.54910556,0.000108,7]
[425259689,1781638238000,-611.4493116,0.0001071,7]
[425259696,1781638238000,-600.0,0.00010922,2]
[425259692,1781638238000,-312.9324774,0.000108,7]
[425259699,1781638238000,-312.93247741,0.000112,7]
[425259691,1781638238000,-193.44193022,0.0001071,7]
[425259709,1781638238000,-417.15472785,0.00012,7]
[425259703,1781638238000,-2153.51587174,0.0001134,7]
[425259713,1781638238000,-864.0,0.00013216,2]
[425259715,1781638238000,-690.882867,0.00013529,2]
[425259701,1781638238000,-1255.54910559,0.000112,7]
[425259711,1781638238000,-720.0,0.00012014,2]
[425259718,1781638238000,-185.415433,0.00013699,2]
[425259706,1781638238000,-290.16289534,0.0001134,7]
[425259707,1781638238000,-2153.51587175,0.0001176,7]
[425259720,1781638238000,-250.0,0.00013924,2]
[425259716,1781638238000,-500.0,0.00013698,2]
[425259769,1781638239000,-500.0,0.00015669,2]
[425259767,1781638239000,-500.0,0.00015669,2]
[425259754,1781638239000,-500.0,0.00015669,2]
[425259756,1781638239000,-500.0,0.00015669,2]
[425259784,1781638239000,-500.0,0.00015669,2]
[425259780,1781638239000,-500.0,0.00015669,2]
[425259786,1781638239000,-500.0,0.00015669,2]
[425259790,1781638239000,-500.0,0.00015669,2]
[425259778,1781638239000,-500.0,0.00015669,2]
[425259773,1781638239000,-500.0,0.00015669,2]
[425259776,1781638239000,-500.0,0.00015669,2]
[425259774,1781638239000,-500.0,0.00015669,2]
[425259788,1781638239000,-500.0,0.00015669,2]
[425259771,1781638239000,-500.0,0.00015669,2]
[425259757,1781638239000,-130.61684875,0.00015669,2]
[425259782,1781638239000,-500.0,0.00015669,2]
[425259747,1781638239000,-500.0,0.00015669,2]
[425259724,1781638239000,-816.33501465,0.00014175,2]
[425259761,1781638239000,-500.0,0.00015669,2]
[425259722,1781638239000,-690.882867,0.00014098,2]
[425259726,1781638239000,-1000.0,0.00014537,2]
[425259728,1781638239000,-690.882867,0.00014668,2]
[425259730,1781638239000,-502.34012693,0.00014693,2]
[425259732,1781638239000,-563.20265877,0.00014693,2]
[425259738,1781638239000,-349.15986887,0.00015052,2]
[425259743,1781638239000,-155.70526643,0.00015669,2]
[425259765,1781638239000,-648.59475501,0.00015669,2]
[425259739,1781638239000,-370.34141215,0.00015052,2]
[425259736,1781638239000,-194.17187681,0.00015052,2]
[425259741,1781638239000,-690.882867,0.00015237,2]
[425259745,1781638239000,-468.21022134,0.00015669,2]
[425259752,1781638239000,-500.0,0.00015669,2]
[425259749,1781638239000,-500.0,0.00015669,2]
[425259750,1781638239000,-500.0,0.00015669,2]
[425259760,1781638239000,-369.38315125,0.00015669,2]
[425259734,1781638239000,-38.87929114,0.00014693,2]
[425259791,1781638239000,-500.0,0.00015671,2]
[425259800,1781638239000,-500.0,0.00015888,2]
[425259799,1781638239000,-500.0,0.00015888,2]
[425259817,1781638239000,-506.96495822,0.0001759,2]
[425259824,1781638239000,-250.2856604,0.00018116,2]
[425259833,1781638239000,-500.0,0.00018116,2]
[425259831,1781638239000,-500.0,0.00018116,2]
[425259825,1781638239000,-500.0,0.00018116,2]
[425259834,1781638239000,-500.0,0.00018116,2]
[425259835,1781638239000,-500.0,0.00018116,2]
[425259832,1781638239000,-500.0,0.00018116,2]
[425259827,1781638239000,-500.0,0.00018116,2]
[425259829,1781638239000,-500.0,0.00018116,2]
[425259830,1781638239000,-500.0,0.00018116,2]
[425259828,1781638239000,-500.0,0.00018116,2]
[425259836,1781638239000,-14788.449952,0.00018117,2]
[425259837,1781638239000,-1583.28408659,0.00018117,2]
[425259795,1781638239000,-2317.60132996,0.00015707,2]
[425259822,1781638239000,-885.95,0.00018107,3]
[425259820,1781638239000,-894.11607909,0.00018017,2]
[425259826,1781638239000,-500.0,0.00018116,2]
[425259821,1781638239000,-295.31,0.00018107,3]
[425259819,1781638239000,-2317.60132995,0.00017874,2]
[425259802,1781638239000,-500.0,0.00015945,2]
[425259797,1781638239000,-690.882867,0.00015807,2]
[425259811,1781638239000,-1855.8661642,0.0001679,2]
[425259805,1781638239000,-244.0,0.00015991,2]
[425259809,1781638239000,-500.0,0.00016767,2]
[425259808,1781638239000,-500.0,0.00016493,2]
[425259806,1781638239000,-500.0,0.00016219,2]
[425259793,1781638239000,-858.21889718,0.00015671,2]
[425259807,1781638239000,-690.882867,0.00016376,2]
[425259814,1781638239000,-500.0,0.00017041,2]
[425259815,1781638239000,-864.14000043,0.00017167,2]
[425259813,1781638239000,-461.73516575,0.0001679,2]
[425259816,1781638239000,-493.03504178,0.0001759,2]
[425259818,1781638239000,-492.0,0.0001759,2]
[425259823,1781638239000,-408.1481304,0.00018116,2]
[425259804,1781638239000,-1000.0,0.00015991,2]
[425259838,1781638240000,-12755.70152944,0.00018117,2]
[425259840,1781638241000,-1309.81679593,0.00018117,2]
[425259839,1781638241000,-5445.02554605,0.00018117,2]
[425259888,1781638253000,-703.49973567,0.00018117,2]
[425259886,1781638253000,-152.0,0.00010386,7]
[425259887,1781638253000,-9376.999065,0.00018117,2]
[425259889,1781638253000,-830.92525342,0.00018117,2]
[425259893,1781638253000,-124114.12450514,0.00018117,2]
[425259892,1781638253000,-501.0,0.00018117,2]
[425259894,1781638253000,-31401.09665546,0.00018117,2]
[425259890,1781638253000,-4084.33087948,0.00018117,2]
[425259895,1781638253000,-569.37999998,0.00018117,2]
[425259891,1781638253000,-78603.73447561,0.00018117,2]
[425259896,1781638268000,154.0,0.00010417,7]
[425259897,1781638306000,-1022.77080916,0.00017837,2]